[Event "*** Titled Tuesday Blitz"]
[Site "Chess.com"]
[Date "2021.03.02"]
[Round "2"]
[White "night_player"]
[Black "Galileo22"]
[Result "0-1"]
[WhiteElo "2192"]
[BlackElo "2421"]
[TimeControl "180+1"]
[EndTime "10:18:31 PST"]
[Termination "Galileo22 won by resignation"]

1. e4 {[%clk 0:03:00.9]} 1... e6 {[%clk 0:03:00.1]} 2. d4 {[%clk 0:03:00.7]}
2... d5 {[%clk 0:03:00.7]} 3. exd5 {[%clk 0:02:59.3]} 3... exd5 {[%clk
0:03:01.6]} 4. Bd3 {[%clk 0:02:58.4]} 4... Nf6 {[%clk 0:02:53.5]} 5. Bg5 {[%clk
0:02:55.6]} 5... Be7 {[%clk 0:02:47.3]} 6. Nf3 {[%clk 0:02:55.4]} 6... Bg4
{[%clk 0:02:33.8]} 7. O-O {[%clk 0:02:54.1]} 7... O-O {[%clk 0:02:31.2]} 8. Re1
{[%clk 0:02:53.6]} 8... Nbd7 {[%clk 0:02:28.7]} 9. Nbd2 {[%clk 0:02:52.6]} 9...
Re8 {[%clk 0:02:22.7]} 10. c3 {[%clk 0:02:52.2]} 10... Nh5 {[%clk 0:02:10.5]}
11. Bxe7 {[%clk 0:02:45.6]} 11... Rxe7 {[%clk 0:02:09.9]} 12. Qc2 {[%clk
0:02:42.2]} 12... h6 {[%clk 0:01:58.9]} 13. Ne5 {[%clk 0:02:37.7]} 13... Nxe5
{[%clk 0:01:54.2]} 14. dxe5 {[%clk 0:02:37.9]} 14... Nf4 {[%clk 0:01:51.4]} 15.
Bf5 {[%clk 0:02:32.1]} 15... Bxf5 {[%clk 0:01:27.9]} 16. Qxf5 {[%clk 0:02:33]}
16... Ne6 {[%clk 0:01:11.2]} 17. Rad1 {[%clk 0:02:25.4]} 17... Qe8 {[%clk
0:01:08]} 18. Nf3 {[%clk 0:02:12.3]} 18... Rd8 {[%clk 0:01:05.7]} 19. Rd3 {[%clk
0:02:09.1]} 19... Nc5 {[%clk 0:01:03.4]} 20. Rde3 {[%clk 0:02:08.5]} 20... c6
{[%clk 0:00:54.2]} 21. Nd4 {[%clk 0:01:49.4]} 21... Qd7 {[%clk 0:00:47]} 22. Rg3
{[%clk 0:01:45.4]} 22... Ne6 {[%clk 0:00:19]} 23. Qg4 {[%clk 0:01:34.3]} 23...
g6 {[%clk 0:00:04.5]} 24. Nf5 {[%clk 0:01:32.5]} 24... h5 {[%clk 0:00:04.5]} 25.
Nxe7+ {[%clk 0:01:31.2]} 25... Qxe7 {[%clk 0:00:04.5]} 26. Qxh5 {[%clk
0:01:29.3]} 26... Ng7 {[%clk 0:00:04.2]} 27. Qg5 {[%clk 0:01:26.4]} 27... Re8
{[%clk 0:00:03.7]} 28. Qxe7 {[%clk 0:01:25.9]} 28... Rxe7 {[%clk 0:00:04.6]} 29.
Rge3 {[%clk 0:01:25]} 29... Ne6 {[%clk 0:00:05.5]} 30. g3 {[%clk 0:01:24.4]}
30... Kg7 {[%clk 0:00:06.4]} 31. Kg2 {[%clk 0:01:24]} 31... Rd7 {[%clk
0:00:07.3]} 32. f4 {[%clk 0:01:20.5]} 32... Nc5 {[%clk 0:00:06.8]} 33. R3e2
{[%clk 0:01:19.5]} 33... a5 {[%clk 0:00:06.9]} 34. Kf3 {[%clk 0:01:17.5]} 34...
a4 {[%clk 0:00:07.2]} 35. Rd1 {[%clk 0:01:16.2]} 35... b5 {[%clk 0:00:07.2]} 36.
Red2 {[%clk 0:01:13.7]} 36... Rb7 {[%clk 0:00:06.3]} 37. Rd4 {[%clk 0:01:12.9]}
37... Ne6 {[%clk 0:00:06.2]} 38. R4d2 {[%clk 0:01:11.6]} 38... Nc5 {[%clk
0:00:06.1]} 39. g4 {[%clk 0:01:11.2]} 39... b4 {[%clk 0:00:05.3]} 40. c4 {[%clk
0:01:06.9]} 40... dxc4 {[%clk 0:00:05]} 41. Rc2 {[%clk 0:01:06.6]} 41... Nd3
{[%clk 0:00:04.2]} 42. Rdd2 {[%clk 0:00:59.7]} 42... b3 {[%clk 0:00:02.4]} 43.
axb3 {[%clk 0:00:59.4]} 43... axb3 {[%clk 0:00:03.3]} 44. Rxc4 {[%clk 0:00:59]}
44... Nb4 {[%clk 0:00:04.2]} 45. Rd3 {[%clk 0:00:54.3]} 45... Nxd3 {[%clk
0:00:04.1]} 46. Rxc6 {[%clk 0:00:49.4]} 46... Nxb2 {[%clk 0:00:03.9]} 47. f5
{[%clk 0:00:49.5]} 47... gxf5 {[%clk 0:00:03.3]} 48. gxf5 {[%clk 0:00:49.7]}
48... Nd3 {[%clk 0:00:04.2]} 49. Ke4 {[%clk 0:00:43.4]} 49... b2 {[%clk
0:00:04.1]} 50. f6+ {[%clk 0:00:37.6]} 50... Kg6 {[%clk 0:00:03.7]} 51. Rc8
{[%clk 0:00:35.6]} 51... b1=Q {[%clk 0:00:03.3]} 52. Rg8+ {[%clk 0:00:35.6]}
52... Kh7 {[%clk 0:00:03.3]} 53. Rg7+ {[%clk 0:00:34]} 53... Kh6 {[%clk
0:00:03.6]} 54. e6 {[%clk 0:00:31.6]} 54... Nc5+ {[%clk 0:00:03.5]} 55. Kd5
{[%clk 0:00:30.8]} 55... Qe4+ {[%clk 0:00:04.1]} 56. Kxc5 {[%clk 0:00:30.5]}
56... Qe5+ {[%clk 0:00:04.7]} 57. Kc6 {[%clk 0:00:29.9]} 57... Qc7+ {[%clk
0:00:04.7]} 58. Kd5 {[%clk 0:00:29.8]} 58... fxe6+ {[%clk 0:00:05.1]} 59. Kxe6
{[%clk 0:00:29.4]} 59... Qc6+ {[%clk 0:00:05.6]} 60. Kf5 {[%clk 0:00:28.4]}
60... Rb5+ {[%clk 0:00:06.5]} 0-1

[Event "*** Titled Tuesday Blitz"]
[Site "Chess.com"]
[Date "2021.03.02"]
[Round "2"]
[White "Schack-Hugo"]
[Black "Moultino06"]
[Result "1-0"]
[WhiteElo "2233"]
[BlackElo "2417"]
[TimeControl "180+1"]
[EndTime "10:18:32 PST"]
[Termination "Schack-Hugo won by checkmate"]

1. e4 {[%clk 0:03:00.9]} 1... e6 {[%clk 0:02:59.9]} 2. d4 {[%clk 0:02:58.6]}
2... d5 {[%clk 0:03:00.8]} 3. Nd2 {[%clk 0:02:17.7]} 3... Nc6 {[%clk 0:03:00.3]}
4. Ngf3 {[%clk 0:02:09.8]} 4... Nf6 {[%clk 0:03:00.1]} 5. e5 {[%clk 0:02:08.4]}
5... Nd7 {[%clk 0:02:59.8]} 6. c3 {[%clk 0:02:00.9]} 6... f6 {[%clk 0:02:59.5]}
7. Nh4 {[%clk 0:01:46]} 7... g6 {[%clk 0:02:48.8]} 8. exf6 {[%clk 0:01:18.2]}
8... Qxf6 {[%clk 0:02:44.5]} 9. Ndf3 {[%clk 0:01:07.5]} 9... Bd6 {[%clk
0:02:35]} 10. Bh6 {[%clk 0:00:58]} 10... Bf4 {[%clk 0:02:24.3]} 11. Bxf4 {[%clk
0:00:46.9]} 11... Qxf4 {[%clk 0:02:25.2]} 12. Bd3 {[%clk 0:00:28.9]} 12... Qf6
{[%clk 0:02:04.1]} 13. O-O {[%clk 0:00:10.9]} 13... O-O {[%clk 0:02:04.2]} 14.
Qd2 {[%clk 0:00:08.8]} 14... Qf4 {[%clk 0:01:59.5]} 15. Qxf4 {[%clk 0:00:05.3]}
15... Rxf4 {[%clk 0:02:00.4]} 16. g3 {[%clk 0:00:03]} 16... Rf6 {[%clk 0:01:56]}
17. Rfe1 {[%clk 0:00:03.2]} 17... Nb6 {[%clk 0:01:47.8]} 18. Ne5 {[%clk
0:00:03.1]} 18... Nxe5 {[%clk 0:01:47.7]} 19. Rxe5 {[%clk 0:00:04]} 19... c5
{[%clk 0:01:38.8]} 20. f4 {[%clk 0:00:03.1]} 20... cxd4 {[%clk 0:01:33.2]} 21.
cxd4 {[%clk 0:00:04]} 21... Bd7 {[%clk 0:01:33.8]} 22. b3 {[%clk 0:00:03.1]}
22... Rc8 {[%clk 0:01:33.4]} 23. Rae1 {[%clk 0:00:03.1]} 23... Kf7 {[%clk
0:01:26.2]} 24. Nf3 {[%clk 0:00:02.7]} 24... h6 {[%clk 0:01:25.6]} 25. R5e3
{[%clk 0:00:02.2]} 25... a6 {[%clk 0:01:14.5]} 26. Ne5+ {[%clk 0:00:03.1]} 26...
Ke7 {[%clk 0:01:07.3]} 27. Nxd7 {[%clk 0:00:04]} 27... Kxd7 {[%clk 0:01:07]} 28.
Bb1 {[%clk 0:00:04.7]} 28... Rc6 {[%clk 0:01:02.3]} 29. h4 {[%clk 0:00:04.6]}
29... Rf8 {[%clk 0:01:01.8]} 30. Kf2 {[%clk 0:00:04.9]} 30... Rfc8 {[%clk
0:01:02]} 31. Bxg6 {[%clk 0:00:04.7]} 31... Kd6 {[%clk 0:00:40.8]} 32. Bf7
{[%clk 0:00:04.5]} 32... Rf8 {[%clk 0:00:36.9]} 33. Bxe6 {[%clk 0:00:05.4]}
33... Nd7 {[%clk 0:00:34.5]} 34. Bh3 {[%clk 0:00:06.3]} 34... Nf6 {[%clk
0:00:34.1]} 35. Re6+ {[%clk 0:00:06.4]} 35... Kc7 {[%clk 0:00:33.3]} 36. Re7+
{[%clk 0:00:05.7]} 36... Kb6 {[%clk 0:00:32.8]} 37. R7e6 {[%clk 0:00:05.6]}
37... Ne4+ {[%clk 0:00:32.2]} 38. Kg2 {[%clk 0:00:05.2]} 38... Rxe6 {[%clk
0:00:29]} 39. Bxe6 {[%clk 0:00:06.1]} 39... Rf6 {[%clk 0:00:28.7]} 40. Bxd5
{[%clk 0:00:06.1]} 40... Nc3 {[%clk 0:00:26.6]} 41. Re6+ {[%clk 0:00:05.6]}
41... Rxe6 {[%clk 0:00:25.3]} 42. Bxe6 {[%clk 0:00:06.5]} 42... Nxa2 {[%clk
0:00:26.2]} 43. Kf3 {[%clk 0:00:06.8]} 43... Nc1 {[%clk 0:00:26.5]} 44. Ke4
{[%clk 0:00:07.4]} 44... Ne2 {[%clk 0:00:26.2]} 45. g4 {[%clk 0:00:07.4]} 45...
Kc7 {[%clk 0:00:26]} 46. g5 {[%clk 0:00:07.6]} 46... hxg5 {[%clk 0:00:25.4]} 47.
hxg5 {[%clk 0:00:08.5]} 47... Kd6 {[%clk 0:00:26]} 48. Bc4 {[%clk 0:00:07.9]}
48... Nc3+ {[%clk 0:00:25.1]} 49. Kd3 {[%clk 0:00:07.7]} 49... Nb5 {[%clk
0:00:22.2]} 50. Bxb5 {[%clk 0:00:07.5]} 50... axb5 {[%clk 0:00:23.1]} 51. b4
{[%clk 0:00:07.7]} 51... Ke6 {[%clk 0:00:23.5]} 52. Ke4 {[%clk 0:00:07.7]} 52...
b6 {[%clk 0:00:23.8]} 53. f5+ {[%clk 0:00:08.6]} 53... Kd6 {[%clk 0:00:24.3]}
54. d5 {[%clk 0:00:09.5]} 54... Kd7 {[%clk 0:00:24.1]} 55. Ke5 {[%clk
0:00:10.4]} 55... Ke7 {[%clk 0:00:25]} 56. g6 {[%clk 0:00:11.1]} 56... Kd7
{[%clk 0:00:25.9]} 57. f6 {[%clk 0:00:11.5]} 57... Ke8 {[%clk 0:00:26.3]} 58.
Ke6 {[%clk 0:00:11.8]} 58... Kf8 {[%clk 0:00:27.2]} 59. d6 {[%clk 0:00:12.2]}
59... Ke8 {[%clk 0:00:27.6]} 60. g7 {[%clk 0:00:11.8]} 60... Kd8 {[%clk
0:00:27.9]} 61. g8=Q# {[%clk 0:00:11.8]} 1-0

[Event "*** Titled Tuesday Blitz"]
[Site "Chess.com"]
[Date "2021.03.02"]
[Round "2"]
[White "A-S-00"]
[Black "tgpgoat"]
[Result "1-0"]
[WhiteElo "2394"]
[BlackElo "2099"]
[TimeControl "180+1"]
[EndTime "10:18:32 PST"]
[Termination "A-S-00 won by resignation"]

1. d4 {[%clk 0:03:00.9]} 1... Nf6 {[%clk 0:02:59.6]} 2. c4 {[%clk 0:03:00.6]}
2... c5 {[%clk 0:02:59.3]} 3. d5 {[%clk 0:02:59.9]} 3... b5 {[%clk 0:02:54.9]}
4. cxb5 {[%clk 0:02:59.7]} 4... a6 {[%clk 0:02:55.4]} 5. bxa6 {[%clk 0:02:59.8]}
5... Bxa6 {[%clk 0:02:56.3]} 6. Nc3 {[%clk 0:03:00.3]} 6... g6 {[%clk
0:02:56.3]} 7. g3 {[%clk 0:03:00.6]} 7... Bg7 {[%clk 0:02:55.7]} 8. Bg2 {[%clk
0:03:01.2]} 8... d6 {[%clk 0:02:56.6]} 9. Nf3 {[%clk 0:03:01.3]} 9... O-O {[%clk
0:02:57.5]} 10. h3 {[%clk 0:03:00.8]} 10... Nbd7 {[%clk 0:02:56.2]} 11. O-O
{[%clk 0:03:00.9]} 11... Ne8 {[%clk 0:02:56]} 12. Re1 {[%clk 0:02:56.8]} 12...
Nc7 {[%clk 0:02:56.4]} 13. Rb1 {[%clk 0:02:50.9]} 13... Nb5 {[%clk 0:02:55.9]}
14. Bd2 {[%clk 0:02:43]} 14... Nxc3 {[%clk 0:02:52.6]} 15. Bxc3 {[%clk
0:02:22.6]} 15... Bxc3 {[%clk 0:02:47.7]} 16. bxc3 {[%clk 0:02:23.5]} 16... Bc4
{[%clk 0:02:47.1]} 17. a4 {[%clk 0:02:18.3]} 17... Qa5 {[%clk 0:02:43.3]} 18.
Qd2 {[%clk 0:01:36.1]} 18... Qxa4 {[%clk 0:02:38.5]} 19. Qh6 {[%clk 0:01:35.4]}
19... Nf6 {[%clk 0:02:30.9]} 20. Ng5 {[%clk 0:01:33.3]} 20... Qc2 {[%clk
0:01:56.9]} 21. h4 {[%clk 0:01:26.7]} 21... Ra2 {[%clk 0:01:43.3]} 22. h5 {[%clk
0:01:22.9]} 22... Bxe2 {[%clk 0:01:33.7]} 23. hxg6 {[%clk 0:01:21.1]} 23... Qxg6
{[%clk 0:01:32.8]} 24. Qh4 {[%clk 0:01:06.6]} 24... Qc2 {[%clk 0:01:02.1]} 25.
Be4 {[%clk 0:01:00.2]} 25... Bd3 {[%clk 0:00:53.2]} 26. Qh2 {[%clk 0:00:11.6]}
26... Bxe4 {[%clk 0:00:49]} 27. Rbc1 {[%clk 0:00:11.8]} 27... Qd3 {[%clk
0:00:38.8]} 28. Rcd1 {[%clk 0:00:10.4]} 28... Rd2 {[%clk 0:00:36.7]} 29. Rxd2
{[%clk 0:00:09.5]} 29... Qxd2 {[%clk 0:00:36.4]} 30. Rxe4 {[%clk 0:00:09.5]}
30... Qd1+ {[%clk 0:00:30.4]} 31. Kg2 {[%clk 0:00:09.1]} 31... Qxd5 {[%clk
0:00:30]} 32. Qh4 {[%clk 0:00:07]} 32... Ra8 {[%clk 0:00:19.4]} 33. Kh3 {[%clk
0:00:05.3]} 33... Qf5+ {[%clk 0:00:18.2]} 34. g4 {[%clk 0:00:03.6]} 34... Qf3+
{[%clk 0:00:17.4]} 35. Nxf3 {[%clk 0:00:03.4]} 35... Nxe4 {[%clk 0:00:15.3]} 36.
g5 {[%clk 0:00:03.9]} 36... d5 {[%clk 0:00:13.6]} 37. Qf4 {[%clk 0:00:03.8]}
37... Ra3 {[%clk 0:00:12.2]} 38. Qb8+ {[%clk 0:00:03.8]} 38... Kg7 {[%clk
0:00:12.1]} 39. Qe5+ {[%clk 0:00:04.7]} 39... Kg8 {[%clk 0:00:10.4]} 40. Qxd5
{[%clk 0:00:05.3]} 40... Nxc3 {[%clk 0:00:07.9]} 41. Qd8+ {[%clk 0:00:05.4]}
41... Kg7 {[%clk 0:00:07.6]} 42. Qxe7 {[%clk 0:00:06.3]} 42... Nd5 {[%clk
0:00:05.2]} 43. Qe5+ {[%clk 0:00:06.2]} 43... f6 {[%clk 0:00:03.1]} 44. Qxd5
{[%clk 0:00:06.7]} 44... Ra6 {[%clk 0:00:01.8]} 45. Qb7+ {[%clk 0:00:06.7]} 1-0

[Event "*** Titled Tuesday Blitz"]
[Site "Chess.com"]
[Date "2021.03.02"]
[Round "2"]
[White "politeplayer"]
[Black "DvaHrasta"]
[Result "1-0"]
[WhiteElo "2233"]
[BlackElo "2420"]
[TimeControl "180+1"]
[EndTime "10:18:33 PST"]
[Termination "politeplayer won on time"]

1. e4 {[%clk 0:03:00.9]} 1... c6 {[%clk 0:02:59.8]} 2. d4 {[%clk 0:02:59.4]}
2... d5 {[%clk 0:02:59.7]} 3. exd5 {[%clk 0:02:58.9]} 3... cxd5 {[%clk
0:02:59.6]} 4. c4 {[%clk 0:02:59.4]} 4... Nf6 {[%clk 0:02:58.9]} 5. Nc3 {[%clk
0:02:59]} 5... Nc6 {[%clk 0:02:58.9]} 6. Nf3 {[%clk 0:02:58.7]} 6... Bg4 {[%clk
0:02:58.1]} 7. cxd5 {[%clk 0:02:58.3]} 7... Nxd5 {[%clk 0:02:58.1]} 8. Bb5
{[%clk 0:02:58.5]} 8... Bxf3 {[%clk 0:02:48]} 9. Qxf3 {[%clk 0:02:54.3]} 9... e6
{[%clk 0:02:47.9]} 10. Bxc6+ {[%clk 0:02:48.7]} 10... bxc6 {[%clk 0:02:47.3]}
11. O-O {[%clk 0:02:49.2]} 11... Be7 {[%clk 0:02:45.6]} 12. Be3 {[%clk
0:02:30.8]} 12... O-O {[%clk 0:02:43.2]} 13. Ne4 {[%clk 0:02:25.6]} 13... a5
{[%clk 0:02:38.5]} 14. Rfc1 {[%clk 0:02:22.2]} 14... Qb6 {[%clk 0:02:33.3]} 15.
b3 {[%clk 0:02:12]} 15... a4 {[%clk 0:02:33.1]} 16. bxa4 {[%clk 0:02:08.8]}
16... Rxa4 {[%clk 0:02:31]} 17. h3 {[%clk 0:01:51]} 17... Rfa8 {[%clk
0:02:29.7]} 18. Rab1 {[%clk 0:01:20.1]} 18... Qa6 {[%clk 0:02:10.4]} 19. Bg5
{[%clk 0:01:07.1]} 19... f6 {[%clk 0:02:04.8]} 20. Be3 {[%clk 0:00:45.5]} 20...
Rxa2 {[%clk 0:02:02.6]} 21. Nc5 {[%clk 0:00:42.5]} 21... Bxc5 {[%clk 0:01:56.4]}
22. Rxc5 {[%clk 0:00:41]} 22... Ra1 {[%clk 0:01:50.7]} 23. Rxa1 {[%clk
0:00:38.1]} 23... Qxa1+ {[%clk 0:01:50]} 24. Rc1 {[%clk 0:00:34]} 24... Qa4
{[%clk 0:01:40.4]} 25. Qg4 {[%clk 0:00:32.5]} 25... Re8 {[%clk 0:01:26.7]} 26.
Bh6 {[%clk 0:00:27.9]} 26... g6 {[%clk 0:01:22.8]} 27. Re1 {[%clk 0:00:22.9]}
27... Kf7 {[%clk 0:01:21.7]} 28. Qh4 {[%clk 0:00:15.8]} 28... e5 {[%clk
0:01:05.6]} 29. Bd2 {[%clk 0:00:14.8]} 29... h5 {[%clk 0:01:03.6]} 30. Qg3
{[%clk 0:00:12.9]} 30... Qxd4 {[%clk 0:00:59.3]} 31. Bh6 {[%clk 0:00:11.7]}
31... c5 {[%clk 0:00:52.2]} 32. Rb1 {[%clk 0:00:11.4]} 32... Re7 {[%clk
0:00:49.9]} 33. Rb8 {[%clk 0:00:10.8]} 33... Qd1+ {[%clk 0:00:26.1]} 34. Kh2
{[%clk 0:00:10.3]} 34... Qd4 {[%clk 0:00:24]} 35. Rf8+ {[%clk 0:00:09.1]} 35...
Ke6 {[%clk 0:00:24.1]} 36. Qxg6 {[%clk 0:00:09.3]} 36... Qxf2 {[%clk 0:00:14.7]}
37. Qg8+ {[%clk 0:00:09.3]} 37... Kf5 {[%clk 0:00:09.2]} 38. Ra8 {[%clk
0:00:07.9]} 38... Ke4 {[%clk 0:00:06.8]} 39. Qg6+ {[%clk 0:00:07.1]} 39... Kd4
{[%clk 0:00:03.7]} 40. Ra4+ {[%clk 0:00:07.2]} 40... c4 {[%clk 0:00:03.9]} 41.
Qb1 {[%clk 0:00:07.4]} 41... Qe2 {[%clk 0:00:01.9]} 42. Qc1 {[%clk 0:00:06.3]}
42... Ke4 {[%clk 0:00:01.6]} 43. Rxc4+ {[%clk 0:00:06]} 43... Kf5 {[%clk
0:00:01.7]} 44. Qb1+ {[%clk 0:00:05.8]} 44... Ke6 {[%clk 0:00:01.7]} 45. Rc6+
{[%clk 0:00:05.6]} 45... Kf7 {[%clk 0:00:01.9]} 46. Ra6 {[%clk 0:00:05.4]} 46...
Qe4 {[%clk 0:00:01.6]} 47. Qxe4 {[%clk 0:00:03.8]} 1-0

[Event "*** Titled Tuesday Blitz"]
[Site "Chess.com"]
[Date "2021.03.02"]
[Round "2"]
[White "Skat2704"]
[Black "Angry_Twin"]
[Result "0-1"]
[WhiteElo "2555"]
[BlackElo "2903"]
[TimeControl "180+1"]
[EndTime "10:18:34 PST"]
[Termination "Angry_Twin won by resignation"]

1. d4 {[%clk 0:03:00.9]} 1... Nf6 {[%clk 0:02:59.1]} 2. c4 {[%clk 0:03:00.8]}
2... e6 {[%clk 0:02:58.6]} 3. Nf3 {[%clk 0:02:59.9]} 3... d5 {[%clk 0:02:57.3]}
4. Nc3 {[%clk 0:02:59]} 4... c6 {[%clk 0:02:55.9]} 5. Bg5 {[%clk 0:02:58.4]}
5... h6 {[%clk 0:02:55.2]} 6. Bh4 {[%clk 0:02:58.1]} 6... dxc4 {[%clk
0:02:55.3]} 7. e4 {[%clk 0:02:57.4]} 7... g5 {[%clk 0:02:55.5]} 8. Bg3 {[%clk
0:02:57.1]} 8... b5 {[%clk 0:02:56.1]} 9. Be2 {[%clk 0:02:57.3]} 9... Bb7 {[%clk
0:02:54.3]} 10. O-O {[%clk 0:02:55.5]} 10... Nbd7 {[%clk 0:02:51.1]} 11. Qc2
{[%clk 0:02:53.1]} 11... a6 {[%clk 0:02:48.4]} 12. b3 {[%clk 0:02:49.3]} 12...
cxb3 {[%clk 0:02:46]} 13. axb3 {[%clk 0:02:49.5]} 13... Bg7 {[%clk 0:02:43.2]}
14. Bd6 {[%clk 0:02:37.7]} 14... Bf8 {[%clk 0:02:43.2]} 15. Bg3 {[%clk
0:02:36.5]} 15... Be7 {[%clk 0:02:43.4]} 16. Rfd1 {[%clk 0:02:31.1]} 16... Qb6
{[%clk 0:02:29.8]} 17. Ne5 {[%clk 0:02:07.3]} 17... Nxe5 {[%clk 0:02:25.5]} 18.
Bxe5 {[%clk 0:02:06.8]} 18... O-O {[%clk 0:02:25.2]} 19. h4 {[%clk 0:02:03.2]}
19... Nd7 {[%clk 0:02:24.5]} 20. Bg3 {[%clk 0:02:01.5]} 20... e5 {[%clk
0:02:24.1]} 21. hxg5 {[%clk 0:01:59.2]} 21... hxg5 {[%clk 0:01:57]} 22. dxe5
{[%clk 0:01:54.8]} 22... Nc5 {[%clk 0:01:54.4]} 23. Bg4 {[%clk 0:01:50.1]} 23...
Ne6 {[%clk 0:01:53.7]} 24. Bf5 {[%clk 0:01:38.5]} 24... Nd4 {[%clk 0:01:25.4]}
25. Rxd4 {[%clk 0:01:07.1]} 25... Qxd4 {[%clk 0:01:23.6]} 26. Rd1 {[%clk
0:01:07.2]} 26... Qc5 {[%clk 0:01:23.8]} 27. Qe2 {[%clk 0:01:02.4]} 27... Kg7
{[%clk 0:01:23.2]} 28. Qf3 {[%clk 0:00:41.3]} 28... Rad8 {[%clk 0:01:17]} 29.
Rc1 {[%clk 0:00:37.4]} 29... Rh8 {[%clk 0:01:06.6]} 30. e6 {[%clk 0:00:31.4]}
30... Bf6 {[%clk 0:00:46.2]} 31. Na2 {[%clk 0:00:28.1]} 31... Qa3 {[%clk
0:00:40.4]} 32. e5 {[%clk 0:00:26.5]} 32... Be7 {[%clk 0:00:40.5]} 33. exf7
{[%clk 0:00:21.6]} 33... Qxa2 {[%clk 0:00:36.7]} 34. e6 {[%clk 0:00:21.2]} 34...
Qb2 {[%clk 0:00:35.8]} 35. Qe3 {[%clk 0:00:19.6]} 35... Bf6 {[%clk 0:00:18.6]}
36. Rf1 {[%clk 0:00:19.5]} 36... Qd4 {[%clk 0:00:16.8]} 37. Qe2 {[%clk
0:00:19.3]} 37... Qc5 {[%clk 0:00:15.7]} 38. Bc7 {[%clk 0:00:18.3]} 38... Qxf5
{[%clk 0:00:15.4]} 39. Bxd8 {[%clk 0:00:18.1]} 39... Bxd8 {[%clk 0:00:09.6]} 40.
e7 {[%clk 0:00:18.2]} 40... Qxf7 {[%clk 0:00:09.3]} 41. exd8=Q {[%clk 0:00:17]}
41... Rxd8 {[%clk 0:00:10.2]} 42. Qe5+ {[%clk 0:00:16.9]} 42... Qf6 {[%clk
0:00:10.6]} 43. Qc7+ {[%clk 0:00:16.7]} 43... Kg6 {[%clk 0:00:09.9]} 44. Qxb7
{[%clk 0:00:16.7]} 44... Qd6 {[%clk 0:00:09.6]} 45. Qxa6 {[%clk 0:00:16.3]}
45... Rh8 {[%clk 0:00:09.3]} 46. g3 {[%clk 0:00:14.1]} 46... Qd5 {[%clk
0:00:09.5]} 47. f3 {[%clk 0:00:13.2]} 47... Qc5+ {[%clk 0:00:09.2]} 48. Kg2
{[%clk 0:00:13]} 48... Qc2+ {[%clk 0:00:05.9]} 49. Rf2 {[%clk 0:00:13.4]} 49...
Rh2+ {[%clk 0:00:06.1]} 50. Kxh2 {[%clk 0:00:13.7]} 50... Qxf2+ {[%clk
0:00:06.7]} 51. Kh3 {[%clk 0:00:13.7]} 51... Qxf3 {[%clk 0:00:07]} 52. Qc8
{[%clk 0:00:12.4]} 52... Qf5+ {[%clk 0:00:07.1]} 0-1

[Event "*** Titled Tuesday Blitz"]
[Site "Chess.com"]
[Date "2021.03.02"]
[Round "2"]
[White "Abund"]
[Black "JoliyRoger"]
[Result "1-0"]
[WhiteElo "2678"]
[BlackElo "2474"]
[TimeControl "180+1"]
[EndTime "10:18:34 PST"]
[Termination "Abund won by checkmate"]

1. e4 {[%clk 0:02:54.3]} 1... c6 {[%clk 0:02:59.8]} 2. d4 {[%clk 0:02:53.7]}
2... d5 {[%clk 0:03:00.7]} 3. e5 {[%clk 0:02:53.6]} 3... Bf5 {[%clk 0:03:00]} 4.
Nd2 {[%clk 0:02:53.3]} 4... e6 {[%clk 0:02:59.3]} 5. Nb3 {[%clk 0:02:53.5]} 5...
Nd7 {[%clk 0:02:58.7]} 6. Nf3 {[%clk 0:02:53.5]} 6... Ne7 {[%clk 0:02:51]} 7.
Be2 {[%clk 0:02:52.8]} 7... Bg4 {[%clk 0:02:36.1]} 8. O-O {[%clk 0:02:50.1]}
8... Ng6 {[%clk 0:02:31.8]} 9. a4 {[%clk 0:02:36.8]} 9... a5 {[%clk 0:02:22.9]}
10. Ne1 {[%clk 0:02:25.9]} 10... Bxe2 {[%clk 0:02:21.9]} 11. Qxe2 {[%clk
0:02:26.8]} 11... Be7 {[%clk 0:02:03.3]} 12. f4 {[%clk 0:02:18.1]} 12... O-O
{[%clk 0:02:03.8]} 13. f5 {[%clk 0:02:15.9]} 13... exf5 {[%clk 0:01:57]} 14.
Rxf5 {[%clk 0:02:16.8]} 14... Nb6 {[%clk 0:01:42.8]} 15. Nd3 {[%clk 0:02:07.1]}
15... Qd7 {[%clk 0:01:38.4]} 16. Rf2 {[%clk 0:01:56.8]} 16... Nc4 {[%clk
0:01:36.6]} 17. Bd2 {[%clk 0:01:52.1]} 17... b6 {[%clk 0:01:35.9]} 18. Raf1
{[%clk 0:01:41.1]} 18... Rae8 {[%clk 0:01:36.3]} 19. Qh5 {[%clk 0:01:25.2]}
19... Nxd2 {[%clk 0:01:18.6]} 20. Rxd2 {[%clk 0:01:02.7]} 20... f6 {[%clk
0:01:05]} 21. Rdf2 {[%clk 0:00:38.7]} 21... fxe5 {[%clk 0:00:58.2]} 22. Nxe5
{[%clk 0:00:27.4]} 22... Nxe5 {[%clk 0:00:54.2]} 23. Qxe5 {[%clk 0:00:20.8]}
23... Rxf2 {[%clk 0:00:53.3]} 24. Rxf2 {[%clk 0:00:18.7]} 24... Bf6 {[%clk
0:00:36.2]} 25. Qf5 {[%clk 0:00:15.3]} 25... Qe7 {[%clk 0:00:22.9]} 26. g3
{[%clk 0:00:10.3]} 26... Qe3 {[%clk 0:00:22.3]} 27. c3 {[%clk 0:00:09.5]} 27...
Qe1+ {[%clk 0:00:20.6]} 28. Kg2 {[%clk 0:00:09.9]} 28... Qe7 {[%clk 0:00:19.8]}
29. Qf3 {[%clk 0:00:09.7]} 29... Qd6 {[%clk 0:00:19.1]} 30. Nc1 {[%clk
0:00:09.9]} 30... c5 {[%clk 0:00:19.4]} 31. Re2 {[%clk 0:00:08.2]} 31... Rf8
{[%clk 0:00:18.9]} 32. dxc5 {[%clk 0:00:07.3]} 32... bxc5 {[%clk 0:00:18.8]} 33.
Qe3 {[%clk 0:00:06.9]} 33... d4 {[%clk 0:00:18.7]} 34. cxd4 {[%clk 0:00:05]}
34... Bxd4 {[%clk 0:00:18.5]} 35. Qe4 {[%clk 0:00:05.2]} 35... Qd7 {[%clk
0:00:14.7]} 36. Nd3 {[%clk 0:00:04.9]} 36... Qxa4 {[%clk 0:00:14.4]} 37. Nxc5
{[%clk 0:00:04.4]} 37... Qd1 {[%clk 0:00:10.8]} 38. Ne6 {[%clk 0:00:03.2]} 38...
Qg1+ {[%clk 0:00:10.4]} 39. Kh3 {[%clk 0:00:03.3]} 39... Qf1+ {[%clk 0:00:11]}
40. Kh4 {[%clk 0:00:02.1]} 40... Qf6+ {[%clk 0:00:11.4]} 41. Kh3 {[%clk
0:00:01.7]} 41... Bxb2 {[%clk 0:00:06.3]} 42. Nxf8 {[%clk 0:00:01.5]} 42... Qh6+
{[%clk 0:00:07.2]} 43. Kg2 {[%clk 0:00:01.6]} 43... Qf6 {[%clk 0:00:07.5]} 44.
Ne6 {[%clk 0:00:01.1]} 44... Qf2+ {[%clk 0:00:07]} 45. Kxf2 {[%clk 0:00:01.2]}
45... Bd4+ {[%clk 0:00:06.7]} 46. Kg2 {[%clk 0:00:02.1]} 46... Be5 {[%clk
0:00:07.2]} 47. Nf4 {[%clk 0:00:03]} 47... h6 {[%clk 0:00:07.9]} 48. Qd5+ {[%clk
0:00:03.9]} 48... Kh7 {[%clk 0:00:08.7]} 49. Qxe5 {[%clk 0:00:04.8]} 49... h5
{[%clk 0:00:09]} 50. Qe4+ {[%clk 0:00:05.7]} 50... Kh6 {[%clk 0:00:09.7]} 51.
Qg6# {[%clk 0:00:06.6]} 1-0